[Event "Sardinia World Festival-A 2024"]
[Site "Orosei"]
[Date "2024.05.01"]
[Round "6.21"]
[White "Chyzy, Jakub"]
[Black "Agmanov, Zhandos"]
[Result "0-1"]
[ECO "B56"]
[WhiteElo "2314"]
[BlackElo "2458"]
[Annotator "TA"]
[PlyCount "44"]
[EventDate "2024.04.26"]
[EventType "swiss"]
[EventCountry "ITA"]
[SourceTitle "playchess.com"]
[Source "ChessBase"]
[SourceQuality "1"]
[TimeControl "40/5400+30:1800+30"]

{[%evp 19,44,27,35,0,0,0,0,0,0,-26,-20,-21,-26,-97,-91,-74,-97,-85,-104,-97,-83,-201,-191,-1095,-1101,-952,-783]} 1. e4 {[%emt 0:00:04]} c5 {[%emt 0:01:27]} 2. Nf3 {[%emt 0:00:18]} d6 {[%emt 0:00:24]} 3. d4 {[%emt 0:00:11]} cxd4 {[%emt 0:00:06]} 4. Nxd4 {[%emt 0:00:08]} Nf6 {[%emt 0:00:05]} 5. Nc3 {[%emt 0:00:06]} Nc6 {[%emt 0:00:05]} 6. f3 {[%emt 0:01:03]} e5 {[%emt 0:00:21]} 7. Nb3 {[%emt 0:00:11]} Be7 {[%emt 0:00:20]} 8. Be3 {[%emt 0:00:39][%cal Bc1e3,Be3b6,Bb6c7][%mdl 32]} O-O {[%emt 0:00:31]} 9. Qd2 {[%emt 0:00:34]} a5 {[%emt 0:00:18][%cal Ba7a5,Ba5a4,Ba4b3][%mdl 32]} 10. Bb5 {[%emt 0:22:51]} Be6 {[%emt 0:00:50]} 11. Nd5 {[%emt 0:00:19]} a4 {[%emt 0:02:13]} 12. Bb6 {[%emt 0:02:46]} Qb8 {[%emt 0:00:10]} 13. Bxc6 {[%emt 0:15:11] The position is equal.} bxc6 {[%emt 0:00:25]} 14. Bc7 {[%emt 0:00:58]} cxd5 {[%emt 0:02:09]} 15. Bxb8 {[%emt 0:04:55]} axb3 {[%emt 0:01:14]} 16. exd5 {[%emt 0:08:01]} (16. c4 $11 Rfxb8 (16... Raxb8 17. cxd5 Bc8 18. axb3 $15) 17. cxd5) 16... Nxd5 $17 {[%emt 0:00:15] Strongly threatening ...bxc2.} 17. c4 {[%emt 0:02:00]} Nf4 {[%emt 0:01:19]} (17... Bh4+ $6 18. g3 Nb6 19. Bxd6 (19. gxh4 Nxc4 20. Qe2 Rxa2 $11) 19... Nxc4 20. Qd3 Nxd6 21. gxh4 $14 (21. Qxd6 Bd8 $17)) 18. Bxd6 {[%emt 0:02:43]} Bxd6 {[%emt 0:00:21]} 19. Qxd6 {[%emt 0:01:21] 0-0 is the strong threat.} Bxc4 {[%emt 0:00:51] Black is much more active. The white rooks are passive.} 20. Kf2 {[%emt 0:05:32] [#]} (20. Qxe5 $2 {too greedy.} Nd3+ (20... Nxg2+ $2 {is the wrong capture.} 21. Kf2 $18) 21. Kd2 Nxe5 $19) (20. g3 $17 Nd3+ (20... Rxa2 $2 21. Rxa2 bxa2 22. Kd2 $18) 21. Kf1) 20... Rad8 $1 $19 {[%emt 0:04:33][%cal Ba8d8,Bd8d2,Bd2c2][%mdl 1056] Black has strong compensation.} 21. Qc7 {[%emt 0:07:14] [#]} (21. Qxd8 Rxd8 22. axb3 Bxb3 23. Ra3) 21... Rd2+ $1 {[%emt 0:05:36]} 22. Ke1 {[%emt 0:00:16]} Rc2 {[%emt 0:09:40] Black took control after the opening.   Weighted Error Value: White=0.75/Black=0.00 (flawless) .  Mistake:       	White=3     	---        Inaccurate:     	White=1     	---        OK:         	White=4     	Black=6      Best:        	White=2     	---        Strong:       	---       	Black=2} 0-1

[Event "Sardinia World Festival-A 2024"]
[Site "Orosei"]
[Date "2024.05.01"]
[Round "6.22"]
[White "Dalaud, Dorian"]
[Black "Royal, Shreyas"]
[Result "1/2-1/2"]
[ECO "B52"]
[WhiteElo "2307"]
[BlackElo "2455"]
[Annotator "TA"]
[PlyCount "63"]
[EventDate "2024.04.26"]
[EventType "swiss"]
[EventCountry "ITA"]
[SourceTitle "playchess.com"]
[Source "ChessBase"]
[SourceQuality "1"]
[TimeControl "40/5400+30:1800+30"]

{[%evp 19,63,8,22,-8,-7,-8,0,0,0,0,0,0,0,0,0,0,0,0,0,0,0,0,0,0,0,0,0,0,8,8,7,0,2,-8,8,8,8,8,8,8,11,8,8,8,8,8]} 1. e4 {[%emt 0:00:42]} c5 {[%emt 0:00:06]} 2. Nf3 {[%emt 0:00:29]} d6 {[%emt 0:00:06]} 3. Bb5+ {[%emt 0:00:22]} Bd7 {[%emt 0:00:32]} 4. Bxd7+ {[%emt 0:01:08]} Qxd7 {[%emt 0:00:32]} 5. O-O {[%emt 0:00:09]} Nf6 {[%emt 0:00:16]} 6. Qe2 {[%emt 0:00:25]} Nc6 {[%emt 0:00:23]} 7. c3 {[%emt 0:00:18]} e6 {[%emt 0:00:16]} 8. d4 {[%emt 0:01:40]} cxd4 {[%emt 0:00:23]} 9. cxd4 {[%emt 0:00:07]} d5 {[%emt 0:00:07]} 10. e5 {[%emt 0:01:25]} Ne4 {[%emt 0:00:07] The position is equal.} 11. Nbd2 {[%emt 0:00:47]} Nxd2 {[%emt 0:00:07]} 12. Bxd2 {[%emt 0:00:04]} Bb4 {[%emt 0:00:07]} 13. Bxb4 {[%emt 0:17:19]} Nxb4 {[%emt 0:00:09]} 14. Qd2 {[%emt 0:00:08]} Nc6 {[%emt 0:08:16]} 15. Rac1 {[%emt 0:00:06]} O-O {[%emt 0:00:06]} 16. Rc2 {[%emt 0:00:10]} Rfc8 {[%emt 0:00:43]} 17. Rfc1 {[%emt 0:01:13]} h6 {[%emt 0:00:29]} 18. h4 {[%emt 0:01:24]} Ne7 {[%emt 0:02:41]} 19. Rxc8+ {[%emt 0:04:24]} Rxc8 {[%emt 0:00:06]} 20. Rxc8+ {[%emt 0:00:05]} Qxc8 $11 {[%emt 0:00:11][%mdl 4096] Endgame. KQN-KQN} 21. g3 {[%emt 0:00:52]} b6 {[%emt 0:06:34]} 22. Kg2 {[%emt 0:02:13]} a5 {[%emt 0:00:06]} 23. Qd3 {[%emt 0:07:01]} Qc4 {[%emt 0:04:11]} 24. Qxc4 {[%emt 0:05:17]} dxc4 {[%emt 0:00:11] KN-KN} 25. Nd2 {[%emt 0:00:16]} b5 {[%emt 0:00:17] [#]} 26. a4 $1 {[%emt 0:02:43]} bxa4 {[%emt 0:00:23][%cal Oc4c3]} (26... c3 27. bxc3) 27. Nxc4 {[%emt 0:01:36]} Nc6 {[%emt 0:00:05]} 28. Kf3 {[%emt 0:07:41] Ke4 would now be deadly.} Nxd4+ {[%emt 0:01:02]} 29. Ke4 {[%emt 0:09:32]} Nc6 {[%emt 0:00:12]} 30. Nb6 {[%emt 0:00:17]} f5+ {[%emt 0:00:06]} 31. exf6 {[%emt 0:00:35]} gxf6 {[%emt 0:00:05]} 32. Nxa4 {[%emt 0:00:21] Not much happened in this game.   Weighted Error Value: White=0.02 (flawless) /Black=0.03 (flawless) .  OK:         	White=8     	Black=8      Best:        	White=1     	Black=2} 1/2-1/2

[Event "Sardinia World Festival-A 2024"]
[Site "Orosei"]
[Date "2024.05.01"]
[Round "6.23"]
[White "Bettalli, Francesco"]
[Black "Fromm, Marius"]
[Result "1/2-1/2"]
[ECO "B90"]
[WhiteElo "2309"]
[BlackElo "2454"]
[Annotator "TA"]
[PlyCount "80"]
[EventDate "2024.04.26"]
[EventType "swiss"]
[EventCountry "ITA"]
[SourceTitle "playchess.com"]
[Source "ChessBase"]
[SourceQuality "1"]
[TimeControl "40/5400+30:1800+30"]

{[%evp 10,80,31,-16,51,0,12,15,31,0,21,12,18,29,8,-28,-41,-24,-11,-53,0,-79,-68,-64,-70,-76,-79,-112,-111,-241,-204,-212,-206,-300,-302,-303,-314,-317,-317,-298,-231,-285,-249,-241,-241,-227,-182,-182,-182,-156,0,0,0,0,0,0,0,0,0,0,0,0,0,0,0,0,0,0,0,0,0,0,0]} 1. e4 {[%emt 0:00:07]} c5 {[%emt 0:00:04]} 2. Nf3 {[%emt 0:00:12]} d6 {[%emt 0:00:05]} 3. d4 {[%emt 0:00:09]} cxd4 {[%emt 0:00:05]} 4. Nxd4 {[%emt 0:00:04]} Nf6 {[%emt 0:00:06]} 5. Nc3 {[%emt 0:00:05]} a6 {[%emt 0:00:03]} 6. Rg1 {[%emt 0:01:00]} (6. Be3 $14 {is more appropriate.}) 6... h5 {[%emt 0:03:35]} ({Black should play} 6... b5 $11) 7. h3 {[%emt 0:00:28]} (7. Bg5 $14) 7... e5 {[%emt 0:11:06]} 8. Nb3 {[%emt 0:00:24]} Be6 {[%emt 0:01:02]} 9. Be3 {[%emt 0:01:25]} h4 {[%emt 0:02:27]} 10. Qf3 {[%emt 0:03:13]} Nbd7 {[%emt 0:01:22]} 11. O-O-O {[%emt 0:05:10]} Rc8 {[%emt 0:00:47][%cal Oc8c3]} 12. Kb1 {[%emt 0:00:23] [#]} Rxc3 $1 {[%emt 0:11:23]} 13. bxc3 {[%emt 0:00:06]} Qc7 {[%emt 0:00:06][%cal Oc7c6]} 14. Bg5 {[%emt 0:09:57][%cal Oc3c4]} Be7 {[%emt 0:03:35]} (14... b5 $15) 15. Bxf6 {[%emt 0:02:32]} (15. c4 $1 $11 {keeps the balance.}) 15... Bxf6 $17 {[%emt 0:04:42]} 16. c4 {[%emt 0:01:04]} Nb6 {[%emt 0:03:59][%cal Ob6a4]} (16... Bxc4 $2 17. Bxc4 Qxc4 18. Rxd6 $18) 17. Qc3 {[%emt 0:01:52]} O-O {[%emt 0:01:37]} (17... Nxc4 $6 18. Bxc4 Bxc4 19. Na5 Bxa2+ 20. Kb2 Qxc3+ 21. Kxc3 $14) (17... Na4 18. Qb4 b5 19. Rd2 $11) 18. Qb4 {[%emt 0:15:34] Repels Na4} Be7 {[%emt 0:01:37]} 19. g4 {[%emt 0:01:10]} (19. Ka1 $17) 19... Nxc4 {[%emt 0:05:19]} (19... Bxc4 20. Bd3) 20. Bxc4 {[%emt 0:02:40] [#]} d5 $1 {[%emt 0:00:42]} (20... Bxc4 21. Qc3) (20... Qxc4 21. Qxc4 Bxc4 22. Rge1 $11) 21. Qxe7 {[%emt 0:04:33]} (21. Qa5 $142 b6 (21... Qxc4 22. exd5 Bb4 23. Qb6 $11) 22. Qc3 dxc4 (22... Qxc4 23. Qxc4 dxc4 24. Nd2 $11) 23. Nd2) 21... Qxe7 $19 {[%emt 0:00:08]} 22. exd5 {[%emt 0:00:05]} Rc8 {[%emt 0:08:45]} 23. d6 {[%emt 0:09:57]} Qd7 {[%emt 0:02:10]} 24. Bxe6 {[%emt 0:00:14]} Qxe6 {[%emt 0:00:11]} 25. Rge1 {[%emt 0:04:11]} Rd8 {[%emt 0:05:12]} 26. Nc5 {[%emt 0:00:20]} Qc4 {[%emt 0:00:21]} 27. Ne4 {[%emt 0:00:38]} b5 {[%emt 0:06:35]} 28. Re3 {[%emt 0:03:26]} b4 {[%emt 0:00:09]} ({Not} 28... Rc8 29. Rc3 Qb4+ 30. Ka1 $11) 29. f3 {[%emt 0:03:20] [#]} Rd7 $2 {[%emt 0:00:56]} ({Better is} 29... a5 $1 $17 {Threatens to win with ...a4.} 30. Red3 a4) 30. Red3 $11 {[%emt 0:00:47] The position is equal.} a5 {[%emt 0:00:18][%cal Ba6a5,Ba5a4][%mdl 32]} 31. Rd5 {[%emt 0:02:28]} a4 {[%emt 0:01:04]} 32. R1d3 {[%emt 0:01:47]} Kh7 {[%emt 0:00:56]} 33. Rc5 {[%emt 0:08:12] Some like it hot} Qa6 {[%emt 0:00:05]} 34. Rxe5 {[%emt 0:00:20] Strongly threatening Nc5.} b3 {[%emt 0:02:29]} 35. axb3 {[%emt 0:02:53]} axb3 {[%emt 0:00:02]} 36. Rxb3 {[%emt 0:01:00]} Qf1+ {[%emt 0:03:00]} (36... Ra7 $5 37. Rh5+ $8 Kg6 38. Rg5+ Kh7 39. Rh5+ Kg6 40. Rg5+ Kh7 41. Rh5+ $11) 37. Kb2 {[%emt 0:00:09] And now Re7 would win.} Ra7 {[%emt 0:00:07][%csl Ga7][%cal Rf1a1]} 38. Rh5+ {[%emt 0:00:14]} Kg6 {[%emt 0:00:01][%csl Ga7][%cal Rf1a1]} 39. Rg5+ {[%emt 0:00:53]} Kh6 {[%emt 0:00:11][%csl Ga7][%cal Rf1a1]} 40. Rh5+ {[%emt 0:00:06]} Kg6 {[%emt 0:00:02] Black had all chances to win.   Weighted Error Value: White=0.19 (very precise) /Black=0.19 (very precise) .  Mistake:       	White=4     	Black=2      Inaccurate:     	White=4     	---        OK:         	White=10    	Black=10     Best:        	White=7     	Black=1      Strong:       	---       	Black=1} 1/2-1/2

[Event "Sardinia World Festival-A 2024"]
[Site "Orosei"]
[Date "2024.05.01"]
[Round "6.24"]
[White "Olsen, Filip Boe"]
[Black "Lewtak, Damian"]
[Result "0-1"]
[ECO "D35"]
[WhiteElo "2440"]
[BlackElo "2343"]
[Annotator "RC"]
[PlyCount "72"]
[EventDate "2024.04.26"]
[EventType "swiss"]
[EventCountry "ITA"]
[SourceTitle "playchess.com"]
[Source "ChessBase"]
[SourceQuality "1"]
[TimeControl "40/5400+30:1800+30"]

1. d4 {[%emt 0:00:06]} Nf6 {[%emt 0:00:04]} 2. c4 {[%emt 0:00:11]} e6 {[%emt 0:00:04]} 3. Nc3 {[%emt 0:00:15]} d5 {[%emt 0:00:04]} 4. Bg5 {[%emt 0:00:56]} Be7 {[%emt 0:00:58]} 5. cxd5 {[%emt 0:00:55]} exd5 {[%emt 0:00:55]} 6. e3 {[%emt 0:00:12]} c6 {[%emt 0:00:52]} 7. Bd3 {[%emt 0:00:33]} Nbd7 {[%emt 0:00:46]} 8. Nge2 {[%emt 0:00:52]} Nh5 {[%emt 0:02:58]} 9. Bxe7 {[%emt 0:01:39]} Qxe7 {[%emt 0:00:06]} 10. O-O {[%emt 0:03:01]} Ndf6 {[%emt 0:02:50]} 11. Qd2 {[%emt 0:11:16]} g6 {[%emt 0:04:49]} 12. f3 {[%emt 0:01:11]} Be6 {[%emt 0:03:11]} 13. e4 {[%emt 0:08:47]} O-O {[%emt 0:00:30]} 14. Rae1 {[%emt 0:02:49]} Rae8 {[%emt 0:03:48]} 15. Bb1 {[%emt 0:12:07]} a6 {[%emt 0:08:11]} 16. a3 {[%emt 0:03:44]} Nd7 {[%emt 0:01:07]} 17. g4 {[%emt 0:12:24]} Ng7 {[%emt 0:00:50]} 18. Qh6 {[%emt 0:05:15]} dxe4 {[%emt 0:07:34]} 19. Nxe4 {[%emt 0:00:41]} Nf6 {[%emt 0:00:11]} 20. N2g3 {[%emt 0:06:28]} Qd8 {[%emt 0:06:11]} 21. Nxf6+ {[%emt 0:11:35]} Qxf6 {[%emt 0:00:22]} 22. Re5 {[%emt 0:00:13]} Bd5 {[%emt 0:09:53]} 23. f4 {[%emt 0:00:51]} Ne6 {[%emt 0:01:01]} 24. Nh5 {[%emt 0:07:05]} Qh4 {[%emt 0:03:18]} 25. Rg5 {[%emt 0:00:47]} Kh8 {[%emt 0:00:47]} 26. Bxg6 {[%emt 0:07:25]} fxg6 {[%emt 0:02:55]} 27. Rxg6 {[%emt 0:00:34]} Rf7 {[%emt 0:14:50]} 28. Nf6 {[%emt 0:01:11]} Qxh6 {[%emt 0:00:21]} 29. Rxh6 {[%emt 0:00:02]} Ree7 {[%emt 0:00:37]} 30. g5 {[%emt 0:01:25]} Nxd4 {[%emt 0:01:00]} 31. b4 {[%emt 0:00:38]} Re2 {[%emt 0:03:13]} 32. Rd1 {[%emt 0:00:06]} Nf5 {[%emt 0:01:14]} 33. Rh3 {[%emt 0:00:33]} Ne3 {[%emt 0:01:14]} 34. Rd3 {[%emt 0:00:41]} Rg2+ {[%emt 0:00:36]} 35. Kh1 {[%emt 0:00:00]} Rf2+ {[%emt 0:00:10]} 36. Rxd5 {[%emt 0:00:40]} Rf1# {[%emt 0:01:45]} 0-1

[Event "Sardinia World Festival-A 2024"]
[Site "Orosei"]
[Date "2024.05.01"]
[Round "6.25"]
[White "Kanyamarala, Trisha"]
[Black "Ben Ari, Yannay"]
[Result "1/2-1/2"]
[ECO "E92"]
[WhiteElo "2285"]
[BlackElo "2436"]
[Annotator "TA"]
[PlyCount "123"]
[EventDate "2024.04.26"]
[EventType "swiss"]
[EventCountry "ITA"]
[SourceTitle "playchess.com"]
[Source "ChessBase"]
[SourceQuality "1"]
[TimeControl "40/5400+30:1800+30"]

{[%evp 36,123,-60,-371,-365,-340,-352,-556,-516,-502,-195,-190,-78,-74,-30,-31,-40,-196,-89,-235,-48,-239,-226,-416,-51,-29,-38,-35,-43,-54,-39,-31,-19,-44,-26,-30,0,-6,0,0,8,18,10,0,0,0,0,-8,-8,-18,-18,-20,-6,-8,0,0,0,0,0,0,0,-25,-26,-278,-278,-271,-271,-278,-278,-264,-263,-264,0,0,0,0,0,0,0,0,0,0,0,0,0,0,0,0,0,0]} 1. d4 {[%emt 0:00:14]} Nf6 {[%emt 0:00:36]} 2. c4 {[%emt 0:00:12]} g6 {[%emt 0:00:14]} 3. Nc3 {[%emt 0:00:24]} Bg7 {[%emt 0:00:14]} 4. e4 {[%emt 0:00:08]} d6 {[%emt 0:00:06]} 5. Nf3 {[%emt 0:00:09]} O-O {[%emt 0:00:12]} 6. Be2 {[%emt 0:00:20]} e5 {[%emt 0:01:16]} 7. d5 {[%emt 0:00:36]} a5 {[%emt 0:01:11]} 8. h3 {[%emt 0:00:16]} Na6 {[%emt 0:04:40]} 9. Bg5 {[%emt 0:00:20]} Qe8 {[%emt 0:07:27]} 10. Nd2 {[%emt 0:07:18]} Nd7 {[%emt 0:11:49]} 11. g4 {[%emt 0:11:31]} Ndc5 {[%emt 0:00:40]} 12. Nf1 {[%emt 0:07:22]} f5 {[%emt 0:16:21]} 13. gxf5 {[%emt 0:05:58]} gxf5 {[%emt 0:06:27]} 14. Rg1 {[%emt 0:04:13]} Kh8 {[%emt 0:04:42]} 15. Ng3 {[%emt 0:03:18]} f4 {[%emt 0:10:00]} 16. Nh5 {[%emt 0:10:36]} Qg6 {[%emt 0:00:21]} 17. Kd2 {[%emt 0:20:39]} Bh6 {[%emt 0:12:13]} 18. h4 {[%emt 0:20:19]} Bxg5 {[%emt 0:11:14]} (18... Nxe4+ $2 $18) 19. Rxg5 $4 {[%emt 0:01:30][%mdl 8192]} (19. hxg5 $15 Nxe4+ 20. Nxe4 Qxe4 21. g6 Qd4+ (21... hxg6 $2 22. Bd3 $18) 22. Ke1 Qxd1+ (22... Qxb2 $2 23. g7+ Kg8 24. gxf8=B+ Kxf8 25. Rb1 $18) 23. Bxd1) 19... Nxe4+ $19 {[%emt 0:00:05]} 20. Nxe4 {[%emt 0:00:51]} Qxe4 {[%emt 0:00:02]} 21. Qg1 {[%emt 0:00:32]} (21. Bd3 {keeps fighting.} Qd4 22. Ke1) 21... Qd4+ $19 {[%emt 0:07:29]} 22. Kc1 {[%emt 0:00:06]} e4 $2 {[%emt 0:02:24]} (22... f3 23. Bf1 e4 (23... Qxh4 $2 24. Qg3 $19)) 23. Nxf4 {[%emt 0:00:29]} (23. Qh2 $2 e3 24. fxe3 fxe3 $19 (24... Qxe3+ $2 25. Kd1 $19)) 23... Bf5 {[%emt 0:00:01]} (23... a4 $1 $19 {[%cal Ra4a3] has better winning chances.} 24. Qg3 a3) 24. Qg3 $17 {[%emt 0:01:33]} Nc5 {[%emt 0:02:04]} 25. Qe3 {[%emt 0:01:39]} Qe5 {[%emt 0:00:12]} 26. h5 $2 {[%emt 0:02:06]} (26. Bg4 $15) 26... Rae8 {[%emt 0:00:22]} (26... Qf6 $1 $19 {And now ...Nd3+ would win.} 27. Rg1 Rae8 (27... Bd7 $2 28. Ng6+ Kg8 29. Nxf8+ Kxf8 30. Qg5 $18)) 27. Kc2 {[%emt 0:00:48] [#]} (27. Bg4 $17 {might work better.}) 27... Nd3 $2 {[%emt 0:00:26]} (27... Qf6 $1 $19 {[%mdl 512] ...Nd3 is the strong threat.} 28. Rb1 (28. Rag1 $2 Nd3 $19) (28. Ne6 Bxe6) 28... Bd7 (28... Qxg5 $2 29. Ng6+ hxg6 30. Qxg5 $19)) 28. Bxd3 $2 {[%emt 0:00:32]} ({White has to play} 28. Nxd3 $15 exd3+ 29. Bxd3 Bxd3+ 30. Kxd3 Qxb2 31. Qd4+ Qxd4+ 32. Kxd4 Rxf2 33. h6) 28... exd3+ $19 {[%emt 0:00:09]} 29. Nxd3 $2 {[%emt 0:00:25]} (29. Kb3 {was the only chance.} a4+ 30. Ka3 Qxe3 31. fxe3 Rxe3 32. Kb4 c5+ (32... d2 33. Rd1 $19) 33. Ka5) 29... Bxd3+ $2 {[%emt 0:01:27]} (29... Qxe3 $19 30. fxe3 Rxe3 31. Rxf5 Rxf5) 30. Kxd3 $15 {[%emt 0:00:09]} Qxb2 {[%emt 0:00:04]} 31. Qd4+ {[%emt 0:00:26]} Qxd4+ {[%emt 0:00:04]} 32. Kxd4 {[%emt 0:00:04]} Rf4+ {[%emt 0:00:24]} 33. Kd3 {[%emt 0:00:48]} Rf3+ {[%emt 0:00:18]} 34. Kd4 {[%emt 0:00:33]} Rxf2 {[%emt 0:01:41]} 35. Rag1 {[%emt 0:00:10]} Rf3 {[%emt 0:00:17]} 36. h6 {[%emt 0:01:16]} Ref8 {[%emt 0:00:15]} 37. R1g4 {[%emt 0:00:18]} c5+ {[%emt 0:01:02]} 38. dxc6 {[%emt 0:00:42]} bxc6 {[%emt 0:00:01]} 39. Rg7 {[%emt 0:00:32]} Rh3 {[%emt 0:00:51]} 40. Ra7 {[%emt 0:00:32]} Rh5 {[%emt 0:00:37]} 41. Ra6 {[%emt 0:06:13]} c5+ {[%emt 0:05:47]} 42. Ke3 {[%emt 0:02:04]} Rxh6 {[%emt 0:03:16]} 43. Rxa5 {[%emt 0:00:37]} Re6+ {[%emt 0:08:08]} 44. Re4 {[%emt 0:02:21]} Rxe4+ {[%emt 0:04:24]} 45. Kxe4 {[%emt 0:00:02]} h5 {[%emt 0:00:28]} 46. Ra3 {[%emt 0:01:59]} Kg7 {[%emt 0:05:00]} 47. Rd3 {[%emt 0:00:25]} Rd8 {[%emt 0:01:34]} 48. Kf5 {[%emt 0:01:19]} Kf7 {[%emt 0:00:19]} 49. a4 $2 {[%emt 0:03:29][%mdl 8192]} (49. Rg3 $11) 49... Ke7 $1 $19 {[%emt 0:01:16]} 50. Rh3 {[%emt 0:04:49]} Rh8 $1 {[%emt 0:00:50]} 51. a5 {[%emt 0:03:39]} Kd7 $1 {[%emt 0:00:01]} 52. a6 {[%emt 0:01:41] [#]} Kc6 $1 {[%emt 0:01:37]} 53. a7 {[%emt 0:03:42] [#]} Kb7 $2 {[%emt 0:01:10]} (53... Ra8 $1 $19 54. Ra3 Kb6) 54. Ke6 $1 $11 {[%emt 0:00:42]} Rh6+ {[%emt 0:00:45]} 55. Kd7 {[%emt 0:00:30]} Ka8 {[%emt 0:01:16]} 56. Kc6 {[%emt 0:02:18]} h4 {[%emt 0:01:02]} 57. Kc7 {[%emt 0:00:41]} Rh5 {[%emt 0:00:53]} 58. Kxd6 {[%emt 0:01:36]} Kb7 {[%emt 0:00:10]} 59. a8=Q+ {[%emt 0:01:59]} Kxa8 {[%emt 0:00:01]} 60. Kc7 {[%emt 0:00:00]} Rh7+ {[%emt 0:00:15]} 61. Kc6 {[%emt 0:00:00]} Rh5 {[%emt 0:00:07]} 62. Kc7 {[%emt 0:00:00]} 1/2-1/2

[Event "Sardinia World Festival-A 2024"]
[Site "Orosei"]
[Date "2024.05.01"]
[Round "6.26"]
[White "Trost, Edvin"]
[Black "Fiedorek, Michal"]
[Result "1/2-1/2"]
[ECO "A13"]
[WhiteElo "2434"]
[BlackElo "2310"]
[Annotator "TA"]
[PlyCount "100"]
[EventDate "2024.04.26"]
[EventType "swiss"]
[EventCountry "ITA"]
[SourceTitle "playchess.com"]
[Source "ChessBase"]
[SourceQuality "1"]
[TimeControl "40/5400+30:1800+30"]

{[%evp 14,100,14,14,35,8,53,51,48,34,41,21,110,106,89,79,93,75,95,63,95,89,84,89,121,90,85,95,93,88,83,64,60,75,94,8,54,0,38,43,44,52,58,51,58,53,43,10,18,8,8,8,8,8,8,8,12,0,0,0,0,0,8,0,0,0,0,0,0,0,0,0,0,0,0,0,0,0,0,0,0,0,0,0,0,0,0,0,0]} 1. Nf3 {[%emt 0:00:11]} Nf6 {[%emt 0:00:08]} 2. c4 {[%emt 0:00:07]} e6 {[%emt 0:00:15]} 3. g3 {[%emt 0:00:16]} d5 {[%emt 0:00:38]} 4. Bg2 {[%emt 0:00:19]} d4 {[%emt 0:05:36]} 5. O-O {[%emt 0:01:07]} c5 {[%emt 0:03:38]} 6. e3 {[%emt 0:00:08]} Nc6 {[%emt 0:00:27]} 7. exd4 {[%emt 0:00:09]} cxd4 {[%emt 0:00:43]} 8. d3 {[%emt 0:00:10]} Bd6 {[%emt 0:07:17]} 9. Na3 {[%emt 0:00:25]} Bxa3 {[%emt 0:15:29]} 10. bxa3 {[%emt 0:00:25]} O-O {[%emt 0:00:09] White is slightly better.} 11. Re1 {[%emt 0:06:55]} Re8 {[%emt 0:00:25]} 12. Bf4 {[%emt 0:02:46]} Re7 {[%emt 0:19:44]} (12... Bd7 $11) 13. Rb1 $16 {[%emt 0:01:27]} Ne8 {[%emt 0:01:29]} 14. Nd2 {[%emt 0:12:34]} e5 {[%emt 0:18:00]} 15. Bxc6 {[%emt 0:00:30]} exf4 {[%emt 0:00:55]} 16. Bf3 {[%emt 0:10:33]} fxg3 {[%emt 0:02:41]} 17. hxg3 {[%emt 0:00:08]} Rb8 {[%emt 0:02:12]} 18. Qa4 {[%emt 0:05:15] [#] Strongly threatening Rxe7.} a6 {[%emt 0:02:43]} 19. c5 {[%emt 0:05:48]} Rxe1+ {[%emt 0:03:27]} 20. Rxe1 {[%emt 0:00:06]} Nc7 {[%emt 0:01:03]} 21. Nb3 {[%emt 0:05:49] White has more active pieces.} Be6 {[%emt 0:07:17]} 22. Qxd4 {[%emt 0:29:08]} Qxd4 {[%emt 0:01:27]} 23. Nxd4 {[%emt 0:00:22]} Rd8 {[%emt 0:00:03]} 24. Re4 {[%emt 0:05:19]} (24. Nxe6 $16 Nxe6 25. d4 (25. Bxb7 Nxc5 $16)) 24... Kf8 {[%emt 0:01:15]} (24... Bxa2 $11 25. Re7 Kf8 26. Rxc7 Rxd4) 25. Rh4 {[%emt 0:02:36]} (25. Nxe6+ $1 $14 Nxe6 26. Rc4) 25... g5 {[%emt 0:02:42]} 26. Nxe6+ $1 {[%emt 0:06:36]} (26. Rxh7 $2 {too greedy.} Rxd4 27. Bxb7 Rxd3 $19) 26... Nxe6 $14 {[%emt 0:00:06][%mdl 4096] Endgame. KRB-KRN} 27. Rc4 {[%emt 0:00:02]} (27. Rxh7 Rxd3 28. Bxb7 Nxc5 $11) 27... Rxd3 {[%emt 0:00:43]} 28. Bxb7 {[%emt 0:00:01]} Ke7 {[%emt 0:02:42]} 29. a4 {[%emt 0:04:12]} a5 {[%emt 0:00:07]} 30. c6 {[%emt 0:01:01] c7 would now be deadly.} Kd8 {[%emt 0:01:20] [#] The position is equal.} 31. c7+ $1 {[%emt 0:01:03]} Nxc7 {[%emt 0:00:06]} 32. Rc5 {[%emt 0:00:01][%csl LRa5,LRg5]} h6 {[%emt 0:01:06]} 33. Rxa5 {[%emt 0:00:51]} Ra3 {[%emt 0:00:07]} 34. Bc6 {[%emt 0:00:31]} Rxa2 {[%emt 0:00:11]} 35. Rf5 {[%emt 0:00:37]} Ke7 {[%emt 0:00:31]} 36. a5 {[%emt 0:00:17]} Ke6 {[%emt 0:00:39]} 37. g4 {[%emt 0:00:05]} h5 {[%emt 0:01:04]} 38. Bf3 {[%emt 0:01:05]} f6 {[%emt 0:00:26]} 39. Rc5 {[%emt 0:00:01]} hxg4 {[%emt 0:00:23]} 40. Bxg4+ {[%emt 0:00:59]} Kd6 {[%emt 0:00:13]} 41. Rf5 {[%emt 0:30:06]} Nd5 {[%emt 0:30:47]} 42. Bf3 {[%emt 0:00:35]} Rxa5 {[%emt 0:00:21]} 43. Bxd5 {[%emt 0:00:10]} Rxd5 {[%emt 0:00:10]} 44. Rxf6+ $11 {[%emt 0:00:08] KR-KR} Ke5 {[%emt 0:00:27]} 45. Rf3 {[%emt 0:00:03]} Rd4 {[%emt 0:00:21]} 46. Re3+ {[%emt 0:00:10]} Re4 {[%emt 0:00:10]} 47. Kg2 {[%emt 0:00:57]} Rxe3 {[%emt 0:00:07]} 48. fxe3 {[%emt 0:00:19]} Ke4 {[%emt 0:00:04]} 49. Kg3 {[%emt 0:00:19]} g4 {[%emt 0:00:06]} 50. Kxg4 {[%emt 0:00:07]} Kxe3 {[%emt 0:00:03] Weighted Error Value: White=0.12 (very precise) /Black=0.11 (very precise) .  Mistake:       	White=2     	Black=2      Inaccurate:     	White=3     	Black=4      OK:         	White=15    	Black=18     Best:        	White=2     	Black=3      Strong:       	White=1     	---} 1/2-1/2